fUST/lending_fUST_20250104
["ID","MTS","AMOUNT","RATE_DAILY","PERIOD"]
[347564628,1735920226103,222.653769,0.00013973,2]
[347564634,1735920445159,-164.592463,0.00017313,2]
[347564635,1735920445182,-250.0,0.00017665,2]
[347564636,1735920445204,-794.03484446,0.00017736,2]
[347564646,1735920554112,-3763.51028974,0.00017736,2]
[347564647,1735920554133,-568.4290901,0.00017917,2]
[347564648,1735920554154,-531.809247,0.00018022,2]
[347564649,1735920554175,-802.2882827,0.00018068,2]
[347564650,1735920554202,-310.3468932,0.00018099,2]
[347564651,1735920554222,-1419.2285228,0.00018253,2]
[347564652,1735920554242,-1338.80026585,0.00018886,2]
[347564653,1735920554262,-380.18520861,0.000189,2]
[347564655,1735920572117,-219.27134956,0.000189,2]
[347564720,1735920632616,-154.81422293,0.00018986,2]
[347564722,1735920632626,-10000.0,0.00019,2]
[347564724,1735920632636,-10000.0,0.00019,2]
[347564726,1735920632645,-302.72757545,0.00019,2]
[347564728,1735920632655,-217.842,0.00019078,2]
[347564730,1735920632664,-32630.221011,0.00019078,2]
[347564732,1735920632673,-500.0,0.00019173,2]
[347564734,1735920632682,-500.0,0.00019173,2]
[347564736,1735920632691,-494.51999569,0.00019177,2]
[347564738,1735920632701,-500.0,0.00019177,2]
[347564740,1735920632710,-500.0,0.00019177,2]
[347564742,1735920632720,-217.98909481,0.00019177,2]
[347564744,1735920632729,-500.0,0.00019177,2]
[347564746,1735920632739,-500.0,0.00019177,2]
[347564748,1735920632748,-500.0,0.00019177,2]
[347564750,1735920632758,-500.0,0.00019177,2]
[347564752,1735920632768,-500.0,0.00019177,2]
[347564754,1735920632778,-500.0,0.00019177,2]
[347564756,1735920632787,-500.0,0.00019177,2]
[347564758,1735920632797,-500.0,0.00019177,2]
[347564760,1735920632806,-500.0,0.00019177,2]
[347564762,1735920632815,-500.0,0.00019177,2]
[347564764,1735920632825,-500.0,0.00019177,2]
[347564766,1735920632835,-393.10046911,0.00019177,2]
[347564768,1735920632845,-500.0,0.00019177,2]
[347564770,1735920632854,-500.0,0.00019177,2]
[347564772,1735920632864,-500.0,0.00019177,2]
[347564774,1735920632874,-444.0906183,0.00019177,2]
[347564776,1735920632884,-635.42228824,0.00019177,2]
[347564779,1735920632894,-500.0,0.00019177,2]
[347564782,1735920632905,-500.0,0.00019177,2]
[347564785,1735920632914,-500.0,0.00019177,2]
[347564788,1735920632923,-500.0,0.00019177,2]
[347564791,1735920632934,-500.0,0.00019177,2]
[347564794,1735920632943,-455.25674401,0.00019177,2]
[347564797,1735920632953,-500.0,0.00019177,2]
[347564800,1735920632962,-500.0,0.00019177,2]
[347564803,1735920632971,-500.0,0.00019177,2]
[347564806,1735920632981,-500.0,0.00019177,2]
[347564809,1735920632991,-500.0,0.00019177,2]
[347564812,1735920633000,-500.0,0.00019177,2]
[347564814,1735920633009,-500.0,0.00019177,2]
[347564816,1735920633019,-500.0,0.00019177,2]
[347564818,1735920633029,-500.0,0.00019177,2]
[347564820,1735920633039,-500.0,0.00019177,2]
[347564821,1735920633049,-500.0,0.00019177,2]
[347564822,1735920633059,-515.04692091,0.00019177,2]
[347564823,1735920633068,-151.0,0.00019178,2]
[347564824,1735920633079,-477.74748275,0.00019178,2]
[347564825,1735920633090,-500.0,0.00019178,2]
[347564826,1735920633100,-500.0,0.00019178,2]
[347564827,1735920633114,-500.0,0.00019178,2]
[347564828,1735920633125,-543.56,0.00019178,2]
[347564829,1735920633135,-500.0,0.00019178,2]
[347564830,1735920633146,-501.0,0.00019178,2]
[347564831,1735920633160,-500.0,0.00019178,2]
[347564832,1735920633171,-500.0,0.00019178,2]
[347564833,1735920633182,-500.0,0.00019178,2]
[347564834,1735920633192,-500.0,0.00019178,2]
[347564835,1735920633203,-500.0,0.00019178,2]
[347564836,1735920633213,-500.0,0.00019178,2]
[347564837,1735920633224,-500.0,0.00019178,2]
[347564838,1735920633234,-500.0,0.00019178,2]
[347564839,1735920633245,-500.0,0.00019178,2]
[347564840,1735920633255,-534.15769526,0.00019178,2]
[347564841,1735920633266,-222.95744751,0.00019178,2]
[347564842,1735920633276,-501.27621066,0.00019178,2]
[347564843,1735920633288,-500.0,0.00019178,2]
[347564844,1735920633298,-500.0,0.00019178,2]
[347564845,1735920633309,-502.52809694,0.00019178,2]
[347564846,1735920633320,-500.0,0.00019178,2]
[347564847,1735920633330,-500.0,0.00019178,2]
[347564848,1735920633340,-503.34637704,0.00019178,2]
[347564849,1735920633350,-527.78,0.00019178,2]
[347564850,1735920633360,-500.0,0.00019178,2]
[347564852,1735920633372,-500.0,0.00019178,2]
[347564854,1735920633382,-151.0,0.00019178,2]
[347564856,1735920633392,-500.0,0.00019178,2]
[347564858,1735920633402,-151.0,0.00019178,2]
[347564860,1735920633414,-501.60583812,0.00019178,2]
[347564862,1735920633424,-500.0,0.00019178,2]
[347564864,1735920633434,-500.0,0.00019178,2]
[347564866,1735920633444,-500.0,0.00019178,2]
[347564868,1735920633454,-1108.67,0.00019178,2]
[347564870,1735920633464,-500.0,0.00019178,2]
[347564872,1735920633474,-500.0,0.00019178,2]
[347564874,1735920633484,-500.0,0.00019178,2]
[347564877,1735920633494,-504.44423283,0.00019178,2]
[347564878,1735920633504,-500.0,0.00019178,2]
[347564880,1735920633514,-500.0,0.00019178,2]
[347564882,1735920633523,-500.0,0.00019178,2]
[347564884,1735920633533,-501.81832761,0.00019178,2]
[347564886,1735920633543,-536.08,0.00019178,2]
[347564888,1735920633553,-500.0,0.00019178,2]
[347564890,1735920633563,-500.0,0.00019178,2]
[347564892,1735920633573,-500.0,0.00019178,2]
[347564894,1735920633583,-500.0,0.00019178,2]
[347564896,1735920633594,-500.0,0.00019178,2]
[347564898,1735920633606,-500.0,0.00019178,2]
[347564900,1735920633616,-500.0,0.00019178,2]
[347564902,1735920633626,-506.72200822,0.00019178,2]
[347564904,1735920633636,-7289.04,0.00019178,2]
[347564906,1735920633646,-803.31,0.00019178,2]
[347564908,1735920633659,-500.28747508,0.00019178,2]
[347564910,1735920633669,-504.23693916,0.00019178,2]
[347564912,1735920633680,-500.0,0.00019178,2]
[347564914,1735920633690,-520.37,0.00019178,2]
[347564916,1735920633700,-503.128924,0.00019178,2]
[347564918,1735920633710,-500.0,0.00019178,2]
[347564920,1735920633720,-511.31651151,0.00019178,2]
[347564922,1735920633731,-501.88320923,0.00019178,2]
[347564924,1735920633740,-502.94030647,0.00019178,2]
[347564927,1735920633750,-500.0,0.00019178,2]
[347564929,1735920633760,-500.0,0.00019178,2]
[347564931,1735920633770,-500.0,0.00019178,2]
[347564933,1735920633780,-500.0,0.00019178,2]
[347564935,1735920633789,-500.0,0.00019178,2]
[347564937,1735920633799,-500.0,0.00019178,2]
[347564939,1735920633808,-500.0,0.00019178,2]
[347564941,1735920633817,-500.0,0.00019178,2]
[347564943,1735920633827,-500.0,0.00019178,2]
[347564945,1735920633836,-618.18211074,0.00019178,2]
[347564946,1735920633845,-500.0,0.00019178,2]
[347564949,1735920633855,-500.0,0.00019178,2]
[347564951,1735920633866,-500.0,0.00019178,2]
[347564953,1735920633875,-500.0,0.00019178,2]
[347564955,1735920633885,-626.86702551,0.00019178,2]
[347564957,1735920633895,-625.73,0.00019178,2]
[347564959,1735920633906,-500.0,0.00019178,2]
[347564960,1735920633916,-500.0,0.00019178,2]
[347564963,1735920633926,-500.0,0.00019178,2]
[347564965,1735920633937,-500.0,0.00019178,2]
[347564967,1735920633947,-500.16818796,0.00019178,2]
[347564969,1735920633957,-500.0,0.00019178,2]
[347564971,1735920633967,-500.0,0.00019178,2]
[347564973,1735920633977,-231.05700933,0.00019178,2]
[347564975,1735920633987,-573.21,0.00019178,2]
[347564977,1735920633998,-503.96162591,0.00019178,2]
[347564979,1735920634008,-500.0,0.00019178,2]
[347564981,1735920634017,-1379.31,0.00019178,2]
[347564983,1735920634027,-500.0,0.00019178,2]
[347564985,1735920634037,-500.0,0.00019178,2]
[347564987,1735920634047,-504.71921326,0.00019178,2]
[347564989,1735920634056,-500.0,0.00019178,2]
[347564991,1735920634067,-500.0,0.00019178,2]
[347564993,1735920634077,-500.0,0.00019178,2]
[347564995,1735920634087,-500.0,0.00019178,2]
[347564997,1735920634097,-504.09440847,0.00019178,2]
[347564999,1735920634106,-500.0,0.00019178,2]
[347565001,1735920634116,-500.0,0.00019178,2]
[347565003,1735920634126,-500.0,0.00019178,2]
[347565005,1735920634136,-500.0,0.00019178,2]
[347565007,1735920634146,-500.83693268,0.00019178,2]
[347565009,1735920634160,-267.91462043,0.00019178,2]
[347565011,1735920634170,-500.0,0.00019178,2]
[347565013,1735920634180,-500.0,0.00019178,2]
[347565015,1735920634192,-500.0,0.00019178,2]
[347565017,1735920634204,-500.0,0.00019178,2]
[347565020,1735920634214,-500.42538076,0.00019178,2]
[347565022,1735920634225,-500.0,0.00019178,2]
[347565024,1735920634236,-500.0,0.00019178,2]
[347565026,1735920634245,-500.0,0.00019178,2]
[347565028,1735920634255,-429.87495867,0.00019178,2]
[347565030,1735920634265,-501.42335016,0.00019178,2]
[347565032,1735920634275,-500.0,0.00019178,2]
[347565034,1735920634285,-550.4225168,0.00019178,2]
[347565036,1735920634295,-500.0,0.00019178,2]
[347565038,1735920634305,-500.0,0.00019178,2]
[347565040,1735920634315,-501.16715681,0.00019178,2]
[347565042,1735920634326,-217.32861084,0.00019178,2]
[347565043,1735920634336,-500.0,0.00019178,2]
[347565045,1735920634346,-500.0,0.00019178,2]
[347565047,1735920634356,-500.0,0.00019178,2]
[347565049,1735920634366,-500.0,0.00019178,2]
[347565051,1735920634376,-501.74947503,0.00019178,2]
[347565054,1735920634387,-500.0,0.00019178,2]
[347565056,1735920634398,-500.0,0.00019178,2]
[347565057,1735920634408,-500.0,0.00019178,2]
[347565060,1735920634418,-347.20816199,0.00019178,2]
[347565061,1735920634427,-500.0,0.00019178,2]
[347565064,1735920634438,-502.67760541,0.00019178,2]
[347565066,1735920634448,-500.0,0.00019178,2]
[347565067,1735920634457,-500.0,0.00019178,2]
[347565070,1735920634467,-500.0,0.00019178,2]
[347565072,1735920634478,-500.84179988,0.00019178,2]
[347565074,1735920634488,-500.0,0.00019178,2]
[347565075,1735920634498,-500.0,0.00019178,2]
[347565077,1735920634508,-500.0,0.00019178,2]
[347565079,1735920634520,-500.0,0.00019178,2]
[347565081,1735920634530,-500.0,0.00019178,2]
[347565083,1735920634540,-500.0,0.00019178,2]
[347565085,1735920634549,-500.0,0.00019178,2]
[347565088,1735920634559,-500.0,0.00019178,2]
[347565089,1735920634569,-651.01,0.00019178,2]
[347565091,1735920634578,-500.0,0.00019178,2]
[347565094,1735920634588,-500.0,0.00019178,2]
[347565096,1735920634598,-500.95922894,0.00019178,2]
[347565112,1735920634752,-523.16115206,0.00019178,2]
[347565114,1735920634762,-500.0,0.00019178,2]
[347565116,1735920634772,-200.0,0.00019178,2]
[347565118,1735920634782,-500.0,0.00019178,2]
[347565120,1735920634792,-500.0,0.00019178,2]
[347565122,1735920634801,-500.0,0.00019178,2]
[347565124,1735920634811,-500.0,0.00019178,2]
[347565126,1735920634820,-579.82469606,0.00019178,2]
[347565128,1735920634829,-500.0,0.00019178,2]
[347565130,1735920634838,-500.0,0.00019178,2]
[347565132,1735920634847,-500.0,0.00019178,2]
[347565134,1735920634857,-500.0,0.00019178,2]
[347565136,1735920634866,-186.23966895,0.00019178,2]
[347565138,1735920634875,-500.0,0.00019178,2]
[347565140,1735920634884,-541.81494978,0.00019178,2]
[347565142,1735920634894,-500.0,0.00019178,2]
[347565144,1735920634904,-978.35,0.00019178,2]
[347565145,1735920634914,-500.0,0.00019178,2]
[347565147,1735920634923,-500.0,0.00019178,2]
[347565149,1735920634933,-500.0,0.00019178,2]
[347565151,1735920634942,-500.0,0.00019178,2]
[347565153,1735920634953,-500.0,0.00019178,2]
[347565156,1735920634963,-509.72166188,0.00019178,2]
[347565158,1735920634974,-500.0,0.00019178,2]
[347565160,1735920634983,-501.22600146,0.00019178,2]
[347565162,1735920634993,-500.0,0.00019178,2]
[347565164,1735920635002,-500.0,0.00019178,2]
[347565166,1735920635013,-500.0,0.00019178,2]
[347565168,1735920635026,-500.0,0.00019178,2]
[347565170,1735920635036,-500.0,0.00019178,2]
[347565172,1735920635046,-962.5,0.00019178,2]
[347565174,1735920635055,-500.0,0.00019178,2]
[347565176,1735920635064,-500.0,0.00019178,2]
[347565178,1735920635074,-500.0,0.00019178,2]
[347565180,1735920635083,-500.0,0.00019178,2]
[347565182,1735920635092,-500.0,0.00019178,2]
[347565184,1735920635102,-500.0,0.00019178,2]
[347565186,1735920635111,-500.0,0.00019178,2]
[347565188,1735920635121,-500.0,0.00019178,2]
[347565190,1735920635131,-500.0,0.00019178,2]
[347565192,1735920635140,-500.0,0.00019178,2]
[347565194,1735920635150,-500.0,0.00019178,2]
[347565196,1735920635162,-500.0,0.00019178,2]
[347565198,1735920635171,-500.0,0.00019178,2]
[347565200,1735920635180,-500.0,0.00019178,2]
[347565202,1735920635190,-500.0,0.00019178,2]
[347565204,1735920635199,-479.57711209,0.00019178,2]
[347565206,1735920635209,-500.0,0.00019178,2]
[347565208,1735920635218,-938.77,0.00019178,2]
[347565210,1735920635228,-150.26331925,0.00019178,2]
[347565212,1735920635237,-500.0,0.00019178,2]
[347565214,1735920635247,-500.0,0.00019178,2]
[347565216,1735920635256,-500.0,0.00019178,2]
[347565218,1735920635265,-500.0,0.00019178,2]
[347565220,1735920635275,-500.0,0.00019178,2]
[347565222,1735920635284,-500.0,0.00019178,2]
[347565224,1735920635294,-500.0,0.00019178,2]
[347565226,1735920635303,-500.0,0.00019178,2]
[347565228,1735920635313,-554.90507457,0.00019178,2]
[347565230,1735920635322,-500.0,0.00019178,2]
[347565232,1735920635331,-500.0,0.00019178,2]
[347565234,1735920635340,-500.0,0.00019178,2]
[347565235,1735920635349,-633.62733997,0.00019178,2]
[347565237,1735920635359,-500.0,0.00019178,2]
[347565239,1735920635368,-500.0,0.00019178,2]
[347565242,1735920635378,-500.78129913,0.00019178,2]
[347565244,1735920635387,-500.0,0.00019178,2]
[347565245,1735920635397,-500.0,0.00019178,2]
[347565247,1735920635407,-453.465491,0.00019178,2]
[347565249,1735920635416,-500.0,0.00019178,2]
[347565251,1735920635425,-592.06,0.00019178,2]
[347565253,1735920635435,-500.0,0.00019178,2]
[347565255,1735920635446,-500.0,0.00019178,2]
[347565257,1735920635456,-500.0,0.00019178,2]
[347565260,1735920635465,-500.0,0.00019178,2]
[347565262,1735920635475,-500.0,0.00019178,2]
[347565263,1735920635485,-500.29108879,0.00019178,2]
[347565266,1735920635495,-500.0,0.00019178,2]
[347565267,1735920635505,-500.0,0.00019178,2]
[347565270,1735920635514,-490.28169312,0.00019178,2]
[347565271,1735920635524,-500.0,0.00019178,2]
[347565273,1735920635533,-500.0,0.00019178,2]
[347565275,1735920635542,-500.0,0.00019178,2]
[347565277,1735920635552,-500.0,0.00019178,2]
[347565279,1735920635561,-500.0,0.00019178,2]
[347565281,1735920635570,-500.0,0.00019178,2]
[347565284,1735920635582,-500.0,0.00019178,2]
[347565286,1735920635591,-500.0,0.00019178,2]
[347565287,1735920635600,-524.46201458,0.00019178,2]
[347565290,1735920635609,-500.0,0.00019178,2]
[347565292,1735920635619,-500.0,0.00019178,2]
[347565294,1735920635629,-500.53254651,0.00019178,2]
[347565296,1735920635638,-500.0,0.00019178,2]
[347565298,1735920635647,-500.0,0.00019178,2]
[347565300,1735920635657,-500.0,0.00019178,2]
[347565302,1735920635666,-500.0,0.00019178,2]
[347565304,1735920635676,-500.7511855,0.00019178,2]
[347565306,1735920635685,-500.64600776,0.00019178,2]
[347565308,1735920635694,-500.0,0.00019178,2]
[347565310,1735920635703,-500.0,0.00019178,2]
[347565312,1735920635712,-500.0,0.00019178,2]
[347565314,1735920635721,-500.0,0.00019178,2]
[347565316,1735920635731,-500.0,0.00019178,2]
[347565318,1735920635741,-500.0,0.00019178,2]
[347565320,1735920635749,-500.0,0.00019178,2]
[347565322,1735920635759,-500.0,0.00019178,2]
[347565324,1735920635769,-500.0,0.00019178,2]
[347565326,1735920635778,-500.0,0.00019178,2]
[347565328,1735920635787,-500.0,0.00019178,2]
[347565330,1735920635796,-500.0,0.00019178,2]
[347565332,1735920635806,-223.2961034,0.00019178,2]
[347565334,1735920635815,-509.07,0.00019178,2]
[347565336,1735920635824,-500.0,0.00019178,2]
[347565338,1735920635834,-500.0,0.00019178,2]
[347565340,1735920635843,-500.0,0.00019178,2]
[347565342,1735920635852,-500.0,0.00019178,2]
[347565344,1735920635861,-500.0,0.00019178,2]
[347565346,1735920635870,-500.0,0.00019178,2]
[347565347,1735920635879,-500.0,0.00019178,2]
[347565349,1735920635889,-500.0,0.00019178,2]
[347565351,1735920635898,-500.0,0.00019178,2]
[347565353,1735920635907,-623.12797977,0.00019178,2]
[347565355,1735920635916,-500.0,0.00019178,2]
[347565357,1735920635925,-500.0,0.00019178,2]
[347565359,1735920635935,-500.0,0.00019178,2]
[347565361,1735920635944,-500.0,0.00019178,2]
[347565363,1735920635953,-500.0,0.00019178,2]
[347565365,1735920635962,-500.0,0.00019178,2]
[347565367,1735920635972,-500.0,0.00019178,2]
[347565369,1735920635981,-575.25,0.00019178,2]
[347565371,1735920635990,-500.0,0.00019178,2]
[347565373,1735920636003,-1001.39,0.00019178,2]
[347565376,1735920636016,-500.0,0.00019178,2]
[347565378,1735920636030,-500.0,0.00019178,2]
[347565381,1735920636044,-500.0,0.00019178,2]
[347565383,1735920636056,-678.2,0.00019178,2]
[347565385,1735920636066,-678.2,0.00019178,2]
[347565387,1735920636077,-500.0,0.00019178,2]
[347565390,1735920636090,-678.2,0.00019178,2]
[347565392,1735920636102,-678.2,0.00019178,2]
[347565394,1735920636114,-678.2,0.00019178,2]
[347565397,1735920636127,-678.2,0.00019178,2]
[347565399,1735920636139,-678.2,0.00019178,2]
[347565401,1735920636152,-678.2,0.00019178,2]
[347565404,1735920636167,-500.0,0.00019178,2]
[347565406,1735920636180,-500.0,0.00019178,2]
[347565409,1735920636195,-500.0,0.00019178,2]
[347565411,1735920636207,-626.4,0.00019178,2]
[347565413,1735920636219,-500.0,0.00019178,2]
[347565415,1735920636231,-500.0,0.00019178,2]
[347565418,1735920636242,-500.0,0.00019178,2]
[347565420,1735920636254,-500.0,0.00019178,2]
[347565422,1735920636266,-500.0,0.00019178,2]
[347565425,1735920636279,-216.13968085,0.00019178,2]
[347565427,1735920636291,-500.0,0.00019178,2]
[347565429,1735920636303,-500.26888923,0.00019178,2]
[347565431,1735920636314,-500.54497151,0.00019178,2]
[347565434,1735920636325,-844.91,0.00019178,2]
[347565436,1735920636335,-500.45577905,0.00019178,2]
[347565438,1735920636347,-500.0,0.00019178,2]
[347565440,1735920636357,-500.0,0.00019178,2]
[347565442,1735920636370,-500.0,0.00019178,2]
[347565445,1735920636382,-500.0,0.00019178,2]
[347565447,1735920636394,-578.99,0.00019178,2]
[347565449,1735920636408,-500.0,0.00019178,2]
[347565452,1735920636419,-500.0,0.00019178,2]
[347565454,1735920636432,-500.0,0.00019178,2]
[347565456,1735920636444,-500.0,0.00019178,2]
[347565459,1735920636457,-500.0,0.00019178,2]
[347565461,1735920636470,-500.0,0.00019178,2]
[347565463,1735920636481,-500.0,0.00019178,2]
[347565465,1735920636492,-500.0,0.00019178,2]
[347565467,1735920636502,-500.0,0.00019178,2]
[347565469,1735920636513,-500.0,0.00019178,2]
[347565472,1735920636525,-500.0,0.00019178,2]
[347565474,1735920636538,-531.98800747,0.00019178,2]
[347565476,1735920636550,-500.0,0.00019178,2]
[347565479,1735920636563,-855.61,0.00019178,2]
[347565481,1735920636573,-500.0,0.00019178,2]
[347565483,1735920636583,-500.0,0.00019178,2]
[347565485,1735920636594,-504.89956428,0.00019178,2]
[347565487,1735920636606,-500.0,0.00019178,2]
[347565489,1735920636618,-508.24971504,0.00019178,2]
[347565492,1735920636630,-500.0,0.00019178,2]
[347565494,1735920636640,-500.0,0.00019178,2]
[347565496,1735920636651,-500.0,0.00019178,2]
[347565498,1735920636664,-500.0,0.00019178,2]
[347565500,1735920636674,-500.0,0.00019178,2]
[347565503,1735920636685,-500.0,0.00019178,2]
[347565505,1735920636695,-500.0,0.00019178,2]
[347565507,1735920636706,-502.31188439,0.00019178,2]
[347565509,1735920636718,-500.0,0.00019178,2]
[347565511,1735920636730,-500.0,0.00019178,2]
[347565514,1735920636742,-500.21073398,0.00019178,2]
[347565516,1735920636753,-500.0,0.00019178,2]
[347565518,1735920636765,-500.0,0.00019178,2]
[347565520,1735920636776,-501.1672604,0.00019178,2]
[347565522,1735920636787,-502.74321858,0.00019178,2]
[347565524,1735920636798,-500.0,0.00019178,2]
[347565527,1735920636809,-616.95,0.00019178,2]
[347565529,1735920636821,-5460.04168494,0.00019178,2]
[347565533,1735920636848,-25653.15831506,0.00019178,2]
[347565535,1735920636859,-504.54,0.00019178,2]
[347565537,1735920636870,-500.0,0.00019178,2]
[347565540,1735920636882,-500.0,0.00019178,2]
[347565542,1735920636894,-501.17492052,0.00019178,2]
[347565544,1735920636904,-500.0,0.00019178,2]
[347565546,1735920636917,-1034.41,0.00019178,2]
[347565548,1735920636927,-503.14092869,0.00019178,2]
[347565550,1735920636939,-502.98273978,0.00019178,2]
[347565553,1735920636950,-500.0,0.00019178,2]
[347565555,1735920636961,-500.0,0.00019178,2]
[347565557,1735920636971,-500.0,0.00019178,2]
[347565559,1735920636982,-500.0,0.00019178,2]
[347565562,1735920636994,-500.0,0.00019178,2]
[347565564,1735920637005,-500.0,0.00019178,2]
[347565566,1735920637016,-500.0,0.00019178,2]
[347565568,1735920637027,-500.0,0.00019178,2]
[347565570,1735920637038,-500.0,0.00019178,2]
[347565573,1735920637050,-500.0,0.00019178,2]
[347565575,1735920637061,-584.26,0.00019178,2]
[347565577,1735920637072,-500.0,0.00019178,2]
[347565579,1735920637083,-500.0,0.00019178,2]
[347565581,1735920637094,-147.04941435,0.00019178,2]
[347565584,1735920637108,-352.95058565,0.00019178,2]
[347565586,1735920637119,-500.0,0.00019178,2]
[347565588,1735920637130,-97.52300635,0.00019178,2]
[347565591,1735920637143,-402.47699365,0.00019178,2]
[347565593,1735920637158,-500.0,0.00019178,2]
[347565595,1735920637168,-500.0,0.00019178,2]
[347565597,1735920637179,-525.59254006,0.00019178,2]
[347565599,1735920637190,-1288.26,0.00019178,2]
[347565602,1735920637201,-500.40636482,0.00019178,2]
[347565604,1735920637212,-500.0,0.00019178,2]
[347565606,1735920637223,-500.0,0.00019178,2]
[347565608,1735920637234,-500.0,0.00019178,2]
[347565610,1735920637246,-500.0,0.00019178,2]
[347565612,1735920637257,-761.7,0.00019178,2]
[347565615,1735920637268,-500.0,0.00019178,2]
[347565617,1735920637279,-518.91743732,0.00019178,2]
[347565619,1735920637291,-500.0,0.00019178,2]
[347565621,1735920637302,-500.0,0.00019178,2]
[347565623,1735920637314,-500.0,0.00019178,2]
[347565626,1735920637325,-500.0,0.00019178,2]
[347565628,1735920637336,-500.0,0.00019178,2]
[347565630,1735920637347,-500.0,0.00019178,2]
[347565632,1735920637359,-500.0,0.00019178,2]
[347565634,1735920637370,-500.0,0.00019178,2]
[347565637,1735920637381,-500.0,0.00019178,2]
[347565639,1735920637393,-1348.39,0.00019178,2]
[347565641,1735920637403,-1361.92,0.00019178,2]
[347565643,1735920637417,-526.10754086,0.00019178,2]
[347565645,1735920637429,-502.06099173,0.00019178,2]
[347565646,1735920637441,-500.0,0.00019178,2]
[347565647,1735920637452,-500.0,0.00019178,2]
[347565648,1735920637463,-500.0,0.00019178,2]
[347565649,1735920637474,-500.0,0.00019178,2]
[347565650,1735920637487,-500.0,0.00019178,2]
[347565651,1735920637498,-1259.08,0.00019178,2]
[347565655,1735920637652,-3.75913156,0.00019178,2]
[347565659,1735920637719,-496.24086844,0.00019178,2]
[347565661,1735920637729,-501.18611852,0.00019178,2]
[347565663,1735920637739,-500.0,0.00019178,2]
[347565665,1735920637749,-500.0,0.00019178,2]
[347565667,1735920637758,-500.0,0.00019178,2]
[347565669,1735920637768,-500.0,0.00019178,2]
[347565671,1735920637777,-336.01764392,0.00019178,2]
[347565744,1735920638457,-163.98235608,0.00019178,2]
[347565746,1735920638467,-500.0,0.00019178,2]
[347565748,1735920638477,-500.0,0.00019178,2]
[347565750,1735920638486,-500.0,0.00019178,2]
[347565752,1735920638495,-500.0,0.00019178,2]
[347565754,1735920638505,-500.0,0.00019178,2]
[347565756,1735920638514,-500.0,0.00019178,2]
[347565758,1735920638524,-500.0,0.00019178,2]
[347565759,1735920638539,-500.0,0.00019178,2]
[347565762,1735920638549,-2507.3,0.00019178,2]
[347565763,1735920638558,-500.0,0.00019178,2]
[347565765,1735920638567,-500.0,0.00019178,2]
[347565768,1735920638578,-500.0,0.00019178,2]
[347565771,1735920638587,-500.0,0.00019178,2]
[347565774,1735920638596,-500.0,0.00019178,2]
[347565776,1735920638606,-500.0,0.00019178,2]
[347565778,1735920638615,-500.0,0.00019178,2]
[347565781,1735920638625,-502.40989583,0.00019178,2]
[347565783,1735920638634,-1105.54,0.00019178,2]
[347565785,1735920638644,-500.0,0.00019178,2]
[347565787,1735920638653,-500.0,0.00019178,2]
[347565788,1735920638665,-500.0,0.00019178,2]
[347565790,1735920638675,-501.82,0.00019178,2]